bitfinex/quotes_ETHUSD_20240810
["timestamp","ask_amount","ask_price","bid_price","bid_amount"]
[1723248848829,7.67567,2605.7,2605.2,0.55]
[1723248849027,3.83783,2605.7,2605.2,0.55]
[1723248850064,3.83765,2605.8,2605.2,0.55]
[1723248850281,3.71282986,2606.0,2605.3,0.07676253]
[1723248850435,3.83752,2605.9,2605.4,0.55]
[1723248850753,3.8376,2605.8,2605.4,0.55]
[1723248851229,3.83801,2605.6,2605.2,0.55]
[1723248851434,3.83798,2605.6,2605.2,0.55]
[1723248851765,7.67599,2605.6,2605.2,0.55]
[1723248851937,7.67596,2605.6,2605.2,0.55]
[1723248852273,3.83798,2605.6,2605.2,0.55]
[1723248853892,3.8386,2605.2,2604.8,2.2967]
[1723248854047,3.83872,2605.1,2604.8,2.2967]
[1723248854252,3.83877,2605.0,2604.8,2.2967]
[1723248854491,3.83877,2605.0,2604.5,11.32942]
[1723248854690,3.83877,2605.0,2604.6,2.2967]
[1723248854874,3.83877,2605.0,2604.3,2.2967]
[1723248854875,3.83908,2604.8,2604.3,2.2967]
[1723248855076,3.83877,2605.0,2604.3,4.74272164]
[1723248855289,3.83856,2605.2,2604.4,3.83956]
[1723248855595,3.0,2605.7,2605.1,2.2967]
[1723248855776,3.0,2605.7,2604.8,3.83897]
[1723248855777,7.67658,2605.4,2604.8,6.13567]
[1723248855947,3.83828,2605.4,2604.8,6.13567]
[1723248856151,3.83828,2605.4,2604.9,1.163567]
[1723248856882,3.83835,2605.3,2604.9,1.163567]
[1723248857081,3.83835,2605.3,2604.9,0.55]
[1723248857264,7.67682,2605.3,2604.9,0.55]
[1723248857482,3.83799,2605.6,2604.9,0.55]
[1723248857681,3.83877,2605.0,2604.9,0.55]
[1723248858061,7.67764,2605.0,2604.5,2.2967]
[1723248858265,3.83877,2605.0,2604.5,3.79252794]
[1723248858497,3.83877,2605.0,2604.5,7.63200794]
[1723248859483,3.83877,2605.0,2604.6,0.55]
[1723248860271,7.67716,2605.2,2604.6,0.55]
[1723248860593,3.83841,2605.3,2604.7,3.83918]
[1723248860791,3.83841,2605.3,2604.8,0.55]
[1723248861481,3.83847,2605.2,2604.8,0.55]
[1723248862314,3.0,2605.5,2604.8,0.55]
[1723248862606,3.83891,2604.9,2604.6,0.55]
[1723248862970,3.8387,2605.1,2604.6,0.55]
[1723248864273,7.67742,2605.1,2604.6,0.55]
[1723248864468,3.8387,2605.1,2604.6,0.55]
[1723248864704,3.8387,2605.1,2604.6,1.218609]
[1723248865375,3.83879,2605.0,2604.6,1.218609]
[1723248865712,3.8387,2605.1,2604.6,1.218609]
[1723248866916,7.67742,2605.1,2604.6,1.218609]
[1723248867275,3.83887,2605.0,2604.6,1.218609]
[1723248867743,3.83887,2605.0,2604.6,0.55]
[1723248868417,3.83868,2605.1,2604.6,0.55]
[1723248869733,3.83877,2605.0,2604.6,0.55]
[1723248870428,3.83856,2605.2,2604.6,1.602555]
[1723248870635,3.83872,2605.1,2604.6,0.55]
[1723248871133,3.83856,2605.2,2604.6,0.55]
[1723248871601,3.83856,2605.2,2604.7,3.83913]
[1723248871803,3.83856,2605.2,2604.8,0.55]
[1723248873405,3.83823,2605.4,2604.9,3.83891]
[1723248873603,3.83823,2605.4,2605.0,0.55]
[1723248874004,3.8384,2605.3,2604.9,0.55]
[1723248874739,3.83858,2605.2,2604.9,0.55]
[1723248875101,3.83858,2605.2,2604.8,0.55]
[1723248878229,3.83858,2605.2,2604.6,0.55]
[1723248878434,3.83878,2605.0,2604.6,0.55]
[1723248878631,3.83888,2605.0,2604.6,0.55]
[1723248878851,3.83886,2605.0,2604.6,0.55]
[1723248880269,3.83899,2604.9,2604.6,0.55]
[1723248880474,3.83886,2605.0,2604.6,0.55]
[1723248880653,3.83895,2604.9,2604.6,0.55]
[1723248880830,3.83886,2605.0,2604.6,0.55]
[1723248881345,7.67775,2605.0,2604.6,0.55]
[1723248881538,3.83885,2605.0,2604.6,0.55]
[1723248881959,3.83857,2605.2,2604.6,1.218627]
[1723248882263,3.83857,2605.2,2604.6,0.55]
[1723248882675,3.83857,2605.2,2604.7,3.8391]
[1723248882869,3.83857,2605.2,2604.8,0.55]
[1723248884739,3.83864,2605.1,2604.6,4.38927]
[1723248884951,3.83856,2605.2,2604.6,5.002881]
[1723248885839,3.83856,2605.2,2604.7,3.83921]
[1723248886181,3.83856,2605.2,2604.8,0.55]
[1723248886339,3.83826,2605.4,2604.8,0.55]
[1723248886648,3.8384,2605.3,2604.8,0.55]
[1723248887041,3.83826,2605.4,2604.9,6.26382]
[1723248887240,3.83826,2605.4,2605.0,0.55]
[1723248890254,3.0,2605.7,2605.0,0.55]
[1723248890454,3.83768,2605.8,2605.3,6.26332]
[1723248890660,3.83767,2605.8,2605.4,0.55]
[1723248891097,7.67536,2605.8,2605.4,0.55]
[1723248891271,3.83777,2605.7,2605.4,0.55]
[1723248891792,3.83777,2605.7,2604.1,23.40006]
[1723248891793,3.8384,2605.3,2604.8,2.425]
[1723248891992,7.67687,2605.3,2604.9,0.55]
[1723248892193,3.8384,2605.3,2604.9,0.55]
[1723248892409,7.67744,2605.1,2604.9,0.55]
[1723248892574,3.8387,2605.1,2604.5,6.2644]
[1723248892771,3.8384,2605.3,2604.7,3.8392]
[1723248893098,3.8384,2605.3,2604.8,0.55]
[1723248893659,3.83864,2605.1,2604.8,0.55]
[1723248893861,3.83864,2605.1,2604.7,0.55]
[1723248894499,3.83896,2604.9,2604.7,0.55]
[1723248894796,3.83909,2604.8,2604.5,2.425]
[1723248895174,3.83909,2604.8,2604.3,6.26476]
[1723248895372,3.83909,2604.8,2604.3,7.27523]
[1723248895566,3.83896,2604.9,2604.3,7.27523]
[1723248895968,3.83938,2604.6,2604.1,2.425]
[1723248896290,3.83962,2604.5,2604.1,2.425]
[1723248896659,2.3115,2605.2,2604.1,2.425]
[1723248896660,3.83804,2605.5,2604.6,2.425]
[1723248896860,3.8382,2605.4,2604.8,2.425]
[1723248897055,3.83842,2605.3,2604.8,2.425]
[1723248897299,3.8388,2605.0,2604.5,2.425]
[1723248897471,3.8388,2605.0,2604.6,0.55]
[1723248898061,7.6771,2605.2,2604.6,0.55]
[1723248898485,3.83849,2605.2,2604.6,4.38934]
[1723248898659,3.83872,2605.1,2604.6,1.61539]
[1723248898863,3.83849,2605.2,2604.6,1.61539]
[1723248899388,3.83862,2605.1,2604.6,4.3893]
[1723248899762,7.67706,2605.2,2604.6,4.3893]
[1723248900407,3.83826,2605.4,2604.7,3.83919]
[1723248900609,3.83819,2605.4,2604.8,4.38897]
[1723248901698,3.83842,2605.3,2604.8,0.55]
[1723248902204,3.83871,2605.1,2604.8,0.55]
[1723248902362,3.8387,2605.1,2604.8,0.55]
[1723248902558,3.83866,2605.1,2604.7,2.4883]
[1723248902763,3.83906,2604.9,2604.4,2.4883]
[1723248903028,0.38387,2605.1,2604.1,2.4883]
[1723248903029,3.8395,2604.5,2604.1,2.4883]
[1723248903161,3.8395,2604.5,2603.9,2.4883]
[1723248903362,3.8398,2604.3,2603.9,2.4883]
[1723248903565,3.8401,2604.1,2603.7,0.40116512]
[1723248904572,3.84041,2603.9,2603.7,0.40116512]
[1723248904903,3.84041,2603.9,2603.6,2.4883]
[1723248905062,0.768051,2603.9,2603.2,2.4883]
[1723248905265,3.84098,2603.5,2603.0,2.4883]
[1723248905472,3.84095,2603.6,2603.0,6.32997]
[1723248905770,3.84094,2603.6,2603.0,6.32997]
[1723248905992,3.8414,2603.3,2602.7,2.4883]
[1723248906336,2.3704,2603.7,2603.1,3.84148]
[1723248906337,3.84081,2603.7,2603.1,3.84148]
[1723248906469,3.84046,2603.9,2603.2,2.4883]
[1723248906667,3.0,2604.0,2603.4,3.84104]
[1723248906900,6.84036,2604.0,2603.4,3.84104]
[1723248907203,3.84081,2603.7,2603.2,2.4883]
[1723248907564,3.84099,2603.5,2603.3,0.55]
[1723248907767,3.84099,2603.5,2603.2,2.4883]
[1723248908009,4.608867,2603.7,2603.2,2.4883]
[1723248908174,7.68118,2603.8,2603.2,2.4883]
[1723248908376,0.60194295,2604.1,2603.3,2.4883]
[1723248908622,3.83978,2604.4,2603.4,0.55]
[1723248908765,3.84064,2603.8,2603.4,0.55]
[1723248909077,3.83989,2604.3,2603.5,2.56511894]
[1723248909281,0.60184912,2604.7,2603.8,3.84045]
[1723248909478,3.83961,2604.5,2603.7,0.07680497]
[1723248909810,4.21804,2604.7,2603.5,2.4883]
[1723248910112,4.21804,2604.7,2603.2,3.84132]
[1723248910113,7.68118,2603.8,2603.3,2.4883]
[1723248910322,2.3704,2605.1,2604.0,3.84013]
[1723248910603,3.83996,2604.2,2603.7,2.4883]
[1723248910804,3.84018,2604.1,2603.7,2.4883]
[1723248911009,3.84032,2604.0,2603.7,2.4883]
[1723248911214,3.84041,2603.9,2603.4,2.4883]
[1723248911423,3.84054,2603.8,2603.4,2.4883]
[1723248911709,3.84041,2603.9,2603.4,2.4883]
[1723248912280,4.224148,2604.1,2603.4,2.4883]
[1723248912281,3.84063,2603.8,2603.4,2.4883]
[1723248912483,3.84063,2603.8,2603.5,0.55]
[1723248912825,4.2626648,2604.0,2603.5,0.55]
[1723248912994,0.4224148,2604.0,2603.5,4.39097]
[1723248913195,3.0,2604.3,2603.5,4.39092]
[1723248913534,3.0,2604.2,2603.7,3.84058]
[1723248913687,7.67769,2605.0,2604.3,3.83971]
[1723248914034,3.83766,2605.8,2604.5,2.4883]
[1723248914181,3.83847,2605.2,2604.6,3.83927]
[1723248914383,4.44002926,2605.2,2604.7,0.55]
[1723248914634,3.83847,2605.2,2604.7,0.55]
[1723248915182,4.606254,2605.2,2604.7,0.55]
[1723248915381,3.83901,2604.9,2604.6,0.55]
[1723248915606,3.83978,2604.4,2603.9,2.4883]
[1723248915780,3.83978,2604.4,2604.0,0.24883]
[1723248915995,7.67889,2604.6,2603.9,6.3286]
[1723248916206,3.83942,2604.6,2603.9,2.4883]
[1723248916843,3.83942,2604.6,2604.0,3.84015]
[1723248917043,8.062231,2604.8,2604.1,4.39001]
[1723248917245,0.8062231,2604.7,2604.1,4.39001]
[1723248917465,4.6455331,2604.7,2604.1,0.55]
[1723248917769,3.83945,2604.6,2604.1,0.55]
[1723248918468,0.8062231,2604.7,2604.2,3.83985]
[1723248918642,4.223031,2604.8,2604.2,3.83985]
[1723248918643,6.83883,2605.0,2604.4,3.83965]
[1723248918979,3.83915,2604.8,2604.2,4.278835]
[1723248919133,3.83915,2604.8,2604.5,0.55]
[1723248919470,3.0,2605.0,2604.0,3.84016]
[1723248919672,3.83959,2604.5,2604.1,0.55]
[1723248919882,3.83959,2604.5,2604.0,0.55]
[1723248921495,3.83974,2604.4,2604.0,0.55]
[1723248921666,3.83959,2604.5,2604.0,0.55]
[1723248921850,7.67919,2604.5,2603.9,4.39034]
[1723248922394,3.83959,2604.5,2603.9,4.39034]
[1723248922691,9.5371,2604.9,2604.1,3.83999]
[1723248922999,7.67857,2604.7,2604.1,3.83999]
[1723248923145,3.83939,2604.6,2604.1,3.83999]
[1723248923986,7.67829,2604.8,2604.2,6.1147]
[1723248924147,3.83948,2604.6,2603.9,2.8248]
[1723248924348,2.3981,2605.2,2603.9,2.8248]
[1723248924349,0.40151935,2606.2,2604.6,2.2748]
[1723248924555,3.83702,2606.2,2605.1,3.83853]
[1723248924800,4.23943702,2605.6,2605.0,2.2748]
[1723248925094,3.83826,2605.4,2604.7,2.8248]
[1723248925245,0.383826,2605.3,2604.7,2.8248]
[1723248925446,3.83826,2605.4,2604.8,3.83898]
[1723248926564,9.23579,2605.8,2605.0,3.83866]
[1723248926881,6.23579,2605.8,2604.8,0.07677865]
[1723248927189,0.015,2606.0,2605.7,6.11242]
[1723248927696,2.3981,2605.9,2604.9,10.50246]
[1723248927905,3.83797,2605.6,2604.9,8.08127319]
[1723248928078,3.83785,2605.7,2605.1,3.83853]
[1723248928260,3.83785,2605.7,2605.2,0.55]
[1723248928261,3.83791,2605.6,2605.2,0.55]
[1723248928587,3.83791,2605.6,2604.9,8.08128319]
[1723248928785,0.015,2606.0,2604.9,0.55]
[1723248928987,0.015,2606.0,2605.6,2.2748]
[1723248929176,0.015,2606.0,2605.7,0.55]
[1723248929554,0.015,2606.0,2605.6,2.2748]
[1723248929555,3.83744,2605.9,2605.6,2.2748]
[1723248930075,0.015,2606.0,2605.6,2.2748]
[1723248930579,0.015,2606.0,2605.7,0.55]
[1723248931638,0.015,2606.0,2605.8,3.8375]
[1723248932157,0.015,2606.0,2605.7,1.600064]
[1723248932374,0.015,2606.0,2605.7,0.55]
[1723248933696,3.83754,2605.9,2605.3,2.2748]
[1723248933852,3.83819,2605.4,2605.0,2.2748]
[1723248934056,7.67595,2605.6,2605.0,2.2748]
[1723248934392,3.83767,2605.8,2605.2,3.83838]
[1723248934554,3.83767,2605.8,2605.2,7.67676]
[1723248934752,0.015,2606.0,2605.9,3.83744]
[1723248934952,0.015,2606.0,2605.9,10.333424]
[1723248935417,0.015,2606.0,2605.9,7.045984]
[1723248935616,0.015,2606.0,2605.9,10.883424]
[1723248937211,0.005,2606.6,2606.4,13.5681]
[1723248937365,0.005,2606.6,2606.4,17.1181]
[1723248937563,0.005,2606.6,2606.4,13.2814]
[1723248937991,0.005,2606.6,2606.4,17.1181]
[1723248938401,0.005,2606.6,2606.4,13.2814]
[1723248938569,0.005,2606.6,2606.4,23.75224]
[1723248940031,0.005,2606.6,2606.5,11.50968]
[1723248940319,0.005,2606.6,2606.5,17.43738]
[1723248940612,0.005,2606.6,2606.5,26.57994]
[1723248940830,0.005,2607.1,2607.0,10.04934]
[1723248941112,0.005,2607.2,2607.1,21.55605]
[1723248941113,1e-05,2607.2,2607.1,21.55605]
[1723248941311,3.83317,2608.9,2607.2,2.3777]
[1723248941470,3.83316,2608.9,2608.2,3.83406]
[1723248941671,3.83316,2608.9,2608.3,4.38382]
[1723248941906,6.215,2609.1,2608.4,3.83376]
[1723248942069,3.83291,2609.0,2608.5,0.55]
[1723248942269,3.83262,2609.2,2608.6,6.21117]
[1723248942471,3.83262,2609.2,2608.6,2.9277]
[1723248942706,3.83262,2609.2,2608.6,6.76117]
[1723248943016,3.83319,2608.8,2608.6,0.55]
[1723248943228,3.8329,2609.0,2608.2,2.3777]
[1723248943372,3.8329,2609.0,2608.3,0.545]
[1723248943722,3.83252,2609.3,2608.3,0.545]
[1723248943886,3.8329,2609.0,2608.3,0.545]
[1723248944084,5.3822,2609.4,2608.3,0.545]
[1723248944395,3.83295,2609.0,2607.8,9.21224]
[1723248944695,3.83359,2608.6,2607.9,3.83449]
[1723248945093,3.83323,2608.8,2607.9,3.83449]
[1723248945496,3.83323,2608.8,2608.1,3.83419]
[1723248945698,3.83323,2608.8,2608.2,0.55]
[1723248945894,3.0,2608.9,2608.2,0.55]
[1723248945895,3.0,2608.9,2608.3,3.83382]
[1723248946106,3.83396,2608.3,2607.3,0.29277]
[1723248946312,3.83422,2608.1,2607.3,3.83531]
[1723248946604,3.83365,2608.5,2607.2,2.3777]
[1723248946813,4.46784386,2608.5,2607.7,3.83466]
[1723248947024,4.46784386,2608.5,2607.8,3.83464]
[1723248947193,4.46784386,2608.5,2607.9,3.83449]
[1723248947594,0.1260886,2608.7,2608.0,0.55]
[1723248947927,3.83403,2608.3,2607.8,0.55]
[1723248948220,3.83372,2608.5,2607.8,0.55]
[1723248948377,3.83372,2608.5,2607.8,4.38463]
[1723248948575,4.61303986,2608.5,2607.9,3.83448]
[1723248948828,4.61303986,2608.5,2608.0,0.55]
[1723248949026,0.77931986,2608.5,2608.0,0.55]
[1723248949324,3.0,2608.6,2608.0,0.55]
[1723248949694,3.0,2608.6,2608.1,3.83413]
[1723248949899,3.0,2608.6,2608.2,0.55]
[1723248950089,3.0,2608.6,2608.0,0.55]
[1723248950454,3.69594686,2608.6,2608.0,0.55]
[1723248950637,3.83413,2608.2,2607.5,7.49]
[1723248950927,3.83413,2608.2,2607.6,3.83491]
[1723248951926,3.83392,2608.3,2607.7,6.21248]
[1723248952328,3.83392,2608.3,2607.8,0.55]
[1723248952529,4.58680769,2608.4,2607.8,0.55]
[1723248952530,0.75297769,2608.4,2607.8,0.55]
[1723248952735,3.83417,2608.2,2607.8,0.55]
[1723248953592,7.66834,2608.2,2607.8,0.55]
[1723248953793,3.83422,2608.1,2607.8,0.55]
[1723248953995,3.83436,2608.0,2607.8,0.55]
[1723248954428,3.83417,2608.2,2607.8,0.55]
[1723248954827,3.83447,2608.0,2607.5,7.49]
[1723248955076,3.69594686,2608.6,2607.3,19.50978]
[1723248955077,0.60083177,2609.1,2608.1,3.83407]
[1723248955229,3.83306,2608.9,2608.3,3.8339]
[1723248955656,3.83306,2608.9,2608.4,0.55]
[1723248955983,3.83318,2608.8,2608.4,0.55]
[1723248956273,3.9594186,2608.7,2608.4,0.55]
[1723248956432,0.52201546,2608.7,2607.9,2.3777]
[1723248956775,0.1260886,2608.7,2607.5,3.83499]
[1723248956928,0.1260886,2608.7,2608.3,3.83386]
[1723248957132,0.1260886,2608.7,2608.4,0.55]
[1723248957549,0.1260886,2608.7,2608.4,4.38376]
[1723248957768,0.1260886,2608.7,2608.4,0.55]
[1723248958074,0.1260886,2608.7,2608.5,3.8336]
[1723248958878,0.1260886,2608.7,2608.4,4.38363]
[1723248959166,0.1260886,2608.7,2608.4,4.38376]
[1723248959378,0.1260886,2608.7,2608.5,3.83361]
[1723248959953,0.1260886,2608.7,2608.4,0.55]
[1723248960159,3.9594786,2608.7,2608.0,2.3777]
[1723248960364,3.83362,2608.5,2608.0,2.3777]
[1723248960569,3.83362,2608.5,2608.1,0.55]
[1723248960733,0.39594786,2608.6,2608.1,4.3842]
[1723248960734,4.22943786,2608.6,2608.1,4.3842]
[1723248960933,3.83365,2608.5,2608.1,0.55]
[1723248961562,4.17952786,2608.6,2608.1,0.55]
[1723248961774,3.83364,2608.5,2608.1,0.55]
[1723248961978,3.8337,2608.5,2608.1,0.55]
[1723248962468,3.8337,2608.5,2608.0,0.55]
[1723248962665,3.8342,2608.1,2608.0,0.55]
[1723248962865,3.83443,2608.0,2607.4,2.2557]
[1723248963191,3.83453,2607.9,2607.3,3.83528]
[1723248963493,7.6686,2608.1,2607.5,3.83508]
[1723248963661,3.83435,2608.1,2607.4,3.83516]
[1723248963857,4.17946786,2608.6,2607.4,2.33239386]
[1723248964057,3.83385,2608.4,2607.8,3.83456]
[1723248964261,3.83385,2608.4,2607.9,3.83448]
[1723248964691,3.83385,2608.4,2607.8,3.83455]
[1723248964692,4.17950786,2608.6,2608.0,4.38431]
[1723248964905,3.83377,2608.4,2608.0,0.55]
[1723248965070,3.83377,2608.4,2607.9,0.55]
[1723248965599,3.83377,2608.4,2607.7,0.55]
[1723248965801,3.83377,2608.4,2607.8,3.83464]
[1723248966165,3.83377,2608.4,2607.9,0.55]
[1723248966500,3.83446,2608.0,2607.0,2.2557]
[1723248966787,2.2641,2608.3,2607.4,3.8352]
[1723248966788,3.83423,2608.1,2607.4,3.8352]
[1723248966994,3.8342,2608.2,2607.0,9.09148]
[1723248967197,3.8342,2608.2,2607.6,7.66967]
[1723248967373,3.8342,2608.2,2607.6,3.83483]
[1723248967557,3.83384,2608.4,2607.8,3.83454]
[1723248967792,3.83384,2608.4,2607.9,0.55]
[1723248967957,3.83407,2608.2,2607.6,3.83483]
[1723248968291,3.83407,2608.2,2607.7,0.55]
[1723248969092,3.83407,2608.2,2607.7,4.38479]
[1723248969489,3.83407,2608.2,2607.7,0.55]
[1723248969674,6.2235686,2608.7,2607.6,2.2557]
[1723248969675,0.1260886,2608.7,2607.6,2.2557]
[1723248969882,0.1260886,2608.7,2608.6,9.92264]
[1723248970113,0.1260886,2608.7,2608.6,10.47264]
[1723248970809,0.1260886,2608.7,2608.6,6.63917]
[1723248971200,0.1260886,2608.7,2608.6,10.47264]
[1723248971405,0.1260886,2608.7,2608.6,11.519904]
[1723248973693,0.1260886,2608.7,2608.6,7.686434]
[1723248974212,0.1260886,2608.7,2608.6,11.519904]
[1723248975178,0.1260886,2608.7,2608.6,15.353374]
[1723248975888,0.1260886,2608.7,2608.6,11.519904]
[1723248976285,0.1260886,2608.7,2608.6,4.38347]
[1723248976940,0.1260886,2608.7,2608.3,2.2557]
[1723248976941,0.1260886,2608.7,2608.3,6.08952]
[1723248977257,0.1260886,2608.7,2608.2,3.83405]
[1723248977457,0.1260886,2608.7,2608.1,3.83412]
[1723248977458,3.9594986,2608.7,2608.1,3.83412]
[1723248977636,3.83349,2608.6,2608.1,3.83412]
[1723248977820,0.90535746,2608.7,2607.7,15.15942]
[1723248977821,3.83396,2608.3,2607.7,15.15942]
[1723248978154,3.8337,2608.5,2607.2,2.2557]
[1723248978451,3.31455746,2608.7,2608.2,3.83404]
[1723248978452,3.0,2608.6,2608.2,3.83404]
[1723248978651,3.63145575,2608.6,2607.8,7.66911]
[1723248978852,3.8337,2608.5,2607.8,3.83453]
[1723248979059,7.66746,2608.5,2607.8,7.66908]
[1723248979354,1.12989158,2608.4,2608.1,3.83409]
[1723248979557,3.63145575,2608.6,2607.9,3.83437]
[1723248979558,7.46500575,2608.6,2607.9,3.83437]
[1723248979761,3.83376,2608.5,2607.9,3.83437]
[1723248980138,7.46500575,2608.6,2607.9,3.83437]
[1723248980341,0.75910944,2608.5,2608.2,3.83397]
[1723248980562,0.63145575,2608.6,2608.2,3.83397]
[1723248980963,0.1260886,2608.7,2608.3,4.38382]
[1723248981173,0.1260886,2608.7,2608.5,3.8336]
[1723248981496,0.1260886,2608.7,2608.3,0.55]
[1723248981659,0.1260886,2608.7,2608.6,3.83347]
[1723248981857,0.1260886,2608.7,2608.6,8.21694]
[1723248982272,0.1260886,2608.7,2608.3,3.83379]
[1723248982491,0.1260886,2608.7,2608.4,0.55]
[1723248982647,0.1260886,2608.7,2608.4,4.38364]
[1723248982849,0.1260886,2608.7,2608.6,3.83347]
[1723248983070,0.1260886,2608.7,2608.6,4.38347]
[1723248983782,0.1260886,2608.7,2608.6,8.21694]
[1723248986394,0.1260886,2608.7,2608.6,10.59384]
[1723248986760,0.1260886,2608.7,2608.6,14.42731]
[1723248987098,0.1260886,2608.7,2608.6,12.0811741]
[1723248987450,0.1260886,2608.7,2608.6,15.9146441]
[1723248987686,0.1260886,2608.7,2608.6,12.0811741]
[1723248988059,0.1260886,2608.7,2608.5,3.83355]
[1723248988262,0.1260886,2608.7,2608.6,3.83347]
[1723248988464,0.1260886,2608.7,2608.6,7.66694]
[1723248988960,0.1260886,2608.7,2608.6,11.50041]
[1723248989175,0.1260886,2608.7,2608.6,7.66694]
[1723248989381,8.6e-06,2608.7,2608.6,46.212974]
[1723248989591,8.6e-06,2608.7,2608.6,49.212974]
[1723248989792,8.6e-06,2608.7,2608.6,48.828474]
[1723248990010,8.6e-06,2608.7,2608.6,44.995004]
[1723248990369,8.6e-06,2608.7,2608.6,48.828474]
[1723248990706,2.3742086,2610.0,2609.5,3.83202]
[1723248990870,0.62055286,2609.9,2609.6,0.55]
[1723248991064,2.3742086,2610.0,2609.4,3.8322]
[1723248991374,2.3742086,2610.0,2609.5,0.55]
[1723248991583,2.3742086,2610.0,2609.0,7.49]
[1723248991584,3.83202,2609.6,2609.0,7.49]
[1723248991784,3.83202,2609.6,2609.1,0.55]
[1723248991993,0.23742086,2609.9,2609.0,7.49]
[1723248992187,3.60057149,2610.4,2609.0,7.49]
[1723248992188,3.8324,2609.4,2609.0,7.49]
[1723248992469,3.83305,2608.9,2608.3,3.83382]
[1723248992670,3.83305,2608.9,2608.1,11.32409]
[1723248993008,3.83305,2608.9,2608.3,3.83379]
[1723248993009,3.83313,2608.9,2608.3,3.83379]
[1723248993367,3.83319,2608.8,2608.1,3.8341]
[1723248993597,3.83319,2608.8,2608.2,3.83403]
[1723248993797,3.83319,2608.8,2608.1,4.4552]
[1723248993999,3.83319,2608.8,2608.1,8.2893]
[1723248994219,3.83334,2608.7,2608.1,4.4552]
[1723248994529,3.83334,2608.7,2608.1,0.6211]
[1723248994687,3.83334,2608.7,2607.9,3.83444]
[1723248995075,3.83334,2608.7,2608.1,3.83416]
[1723248995276,3.83347,2608.6,2608.1,3.83416]
[1723248995472,3.83347,2608.6,2607.9,3.83438]
[1723248995691,3.83347,2608.6,2607.7,6.83471]
[1723248995692,3.78389,2608.4,2607.7,10.66941]
[1723248995886,3.83357,2608.6,2607.9,3.8344]
[1723248996710,4.216927,2608.6,2608.0,3.83425]
[1723248996911,8.050507,2608.6,2608.0,3.83425]
[1723248997123,2.4092,2608.5,2607.6,3.83487]
[1723248997288,2.4092,2608.5,2607.6,3.83483]
[1723248997474,3.83396,2608.3,2607.6,3.83483]
[1723248997679,3.83396,2608.3,2607.7,3.83478]
[1723248997881,0.2792557,2608.4,2606.6,5.285]
[1723248997882,2.4092,2608.0,2606.6,5.285]
[1723248998211,2.4092,2608.0,2606.8,3.83599]
[1723248998212,2.4866,2607.3,2606.8,3.83599]
[1723248998378,6.32207,2607.3,2606.4,7.67327]
[1723248998578,3.83578,2607.1,2606.5,4.603787]
[1723248998780,3.83578,2607.1,2606.5,0.767327]
[1723248998978,3.83593,2607.0,2606.4,3.83662]
[1723248999219,3.83578,2607.1,2606.4,7.67321]
[1723248999397,2.4866,2607.3,2606.2,3.83694]
[1723248999734,2.4866,2607.3,2605.8,10.04512]
[1723248999735,3.83627,2606.7,2605.8,10.04512]
[1723248999939,2.4866,2606.6,2605.9,1.004512]
[1723249000215,2.4866,2606.6,2605.9,3.8373]
[1723249000379,2.4866,2606.6,2606.1,3.83714]
[1723249001095,3.83673,2606.4,2605.8,3.83756]
[1723249001419,3.83671,2606.4,2605.8,0.767523]
[1723249001583,3.83668,2606.5,2605.9,3.83743]
[1723249001912,3.83672,2606.4,2605.8,0.767523]
[1723249002523,3.83688,2606.3,2605.5,3.8379]
[1723249002680,3.83688,2606.3,2605.6,3.83779]
[1723249003084,2.4866,2607.2,2606.8,3.83608]
[1723249003322,3.83519,2607.5,2606.6,3.83634]
[1723249003506,3.83547,2607.3,2606.6,3.8363]
[1723249003708,0.383519,2607.4,2606.4,3.83664]
[1723249003922,3.83583,2607.0,2606.2,3.83689]
[1723249004222,3.83583,2607.0,2606.3,3.83685]
[1723249004523,3.83583,2607.0,2606.4,0.55]
[1723249005316,3.83614,2606.8,2606.4,0.55]
[1723249005528,3.83583,2607.0,2606.4,0.55]
[1723249005685,3.8359,2607.0,2606.4,4.3867]
[1723249006090,3.8356,2607.2,2606.5,3.83646]
[1723249006289,7.67127,2607.2,2606.6,3.8364]
[1723249006515,7.67127,2607.2,2606.4,4.9019974]
[1723249006516,3.83568,2607.1,2606.4,4.9019974]
[1723249006784,3.83585,2607.0,2606.4,4.9019974]
[1723249007027,3.83585,2607.0,2606.4,4.38659]
[1723249007401,0.8054789,2607.2,2606.4,0.55]
[1723249007601,0.383519,2607.4,2606.0,3.83719]
[1723249007602,3.83637,2606.7,2606.0,3.83719]
[1723249007944,3.83637,2606.7,2605.6,3.0]
[1723249007945,3.83667,2606.5,2605.6,7.67561]
[1723249008232,2.4866,2606.6,2605.8,3.83758]
[1723249008233,0.632327,2606.4,2605.8,3.83758]
[1723249008542,2.4866,2606.6,2606.0,3.83719]
[1723249008688,2.4866,2606.6,2606.0,3.83726]
[1723249008889,2.4866,2606.6,2606.1,3.83712]
[1723249009212,2.4866,2606.6,2606.3,3.83681]
[1723249010629,2.4866,2606.3,2605.7,7.67525]
[1723249010813,6.32349,2606.3,2605.7,3.83761]
[1723249011129,6.32349,2606.3,2605.5,3.83797]
[1723249011426,6.32349,2606.3,2605.3,3.83829]
[1723249011427,3.83724,2606.1,2605.4,3.83809]
[1723249011851,0.632349,2606.2,2605.6,3.83786]